bitfinex/quotes_BTCUSD_20240803
["timestamp","ask_amount","ask_price","bid_price","bid_amount"]
[1722652041193,1.34807697,61370.0,61369.0,0.000913]
[1722652041412,1.22533424,61370.0,61369.0,0.000913]
[1722652041811,1.56614208,61370.0,61369.0,0.000913]
[1722652042010,1.28967339,61370.0,61369.0,0.000913]
[1722652042274,1.53409239,61370.0,61369.0,0.000913]
[1722652042791,1.53209239,61370.0,61369.0,0.000913]
[1722652043021,1.77149239,61370.0,61369.0,0.000913]
[1722652043247,2.02591139,61370.0,61369.0,0.000913]
[1722652043686,2.02491139,61370.0,61369.0,0.000913]
[1722652044162,1.61147142,61370.0,61369.0,0.000913]
[1722652044387,1.78078919,61370.0,61369.0,0.000913]
[1722652044620,2.02720199,61370.0,61369.0,0.000913]
[1722652044837,2.04720199,61370.0,61369.0,0.000913]
[1722652045044,2.04520199,61370.0,61369.0,0.000913]
[1722652045235,2.04720199,61370.0,61369.0,0.000913]
[1722652045787,2.04732664,61370.0,61369.0,0.000913]
[1722652046288,2.02732664,61370.0,61369.0,0.000913]
[1722652046561,1.9289077,61370.0,61369.0,0.000913]
[1722652046793,2.1933267,61370.0,61369.0,0.000913]
[1722652047014,1.9289077,61370.0,61369.0,0.000913]
[1722652047475,1.92889797,61370.0,61369.0,0.000913]
[1722652047706,1.77270479,61370.0,61369.0,0.000913]
[1722652050726,1.77259684,61370.0,61369.0,0.000913]
[1722652053519,2.02701584,61370.0,61369.0,0.000913]
[1722652053736,2.01701584,61370.0,61369.0,0.000913]
[1722652054192,0.88548,61369.0,61368.0,0.010076]
[1722652054408,1.80818601,61369.0,61368.0,0.010076]
[1722652054620,1.79528938,61369.0,61368.0,0.010076]
[1722652054823,2.03971238,61369.0,61368.0,0.010076]
[1722652055031,2.05971174,61369.0,61368.0,0.010076]
[1722652055855,2.06071174,61369.0,61368.0,0.011076]
[1722652056020,2.04271174,61369.0,61368.0,0.012076]
[1722652056226,1.79828874,61369.0,61368.0,0.012076]
[1722652056482,1.89627074,61369.0,61368.0,0.012076]
[1722652056733,2.14069374,61369.0,61368.0,0.012076]
[1722652056940,2.16069374,61369.0,61368.0,0.012076]
[1722652057164,1.8175188,61369.0,61368.0,0.012076]
[1722652057367,1.7297188,61369.0,61368.0,0.012076]
[1722652057519,1.6317368,61369.0,61368.0,0.012076]
[1722652057726,1.75335991,61369.0,61368.0,0.012076]
[1722652057924,1.6317368,61369.0,61368.0,0.012076]
[1722652058588,1.63870687,61369.0,61368.0,0.010076]
[1722652058795,1.76934992,61369.0,61368.0,0.011076]
[1722652058997,1.77434992,61369.0,61368.0,0.012076]
[1722652059181,1.76934992,61369.0,61368.0,0.011076]
[1722652059383,1.64770687,61369.0,61368.0,0.011076]
[1722652059599,1.65270687,61369.0,61368.0,0.012076]
[1722652059817,1.38528387,61369.0,61368.0,0.012076]
[1722652060047,1.38528387,61369.0,61368.0,0.147276]
[1722652060048,1.10485772,61369.0,61368.0,0.147276]
[1722652060247,1.27628387,61369.0,61368.0,0.147276]
[1722652060454,1.07876883,61369.0,61368.0,0.147276]
[1722652060662,1.32319183,61369.0,61368.0,0.147276]
[1722652060808,1.26952856,61369.0,61368.0,0.146276]
[1722652061220,1.30152856,61369.0,61368.0,0.148276]
[1722652061432,1.34719183,61369.0,61368.0,0.147276]
[1722652061704,1.37151215,61369.0,61368.0,0.147276]
[1722652061876,1.37151215,61369.0,61368.0,0.071476]
[1722652061877,1.3015153,61369.0,61368.0,0.071476]
[1722652062081,1.3015153,61369.0,61368.0,0.011076]
[1722652062082,1.39884904,61369.0,61368.0,0.011076]
[1722652062278,1.6676055,61369.0,61368.0,0.010076]
[1722652062642,1.7177383,61369.0,61368.0,0.010076]
[1722652062815,1.7237383,61369.0,61368.0,0.010076]
[1722652064523,1.86972863,61369.0,61368.0,0.010076]
[1722652065385,1.72426037,61369.0,61368.0,0.010076]
[1722652065815,1.49486715,61369.0,61368.0,0.010076]
[1722652066016,1.72435635,61369.0,61368.0,0.010076]
[1722652067985,1.64655635,61369.0,61368.0,0.010076]
[1722652069069,1.16313658,61369.0,61368.0,0.010076]
[1722652069314,1.64647444,61369.0,61368.0,0.010076]
[1722652069722,1.89089744,61369.0,61368.0,0.010076]
[1722652069936,2.30906769,61369.0,61368.0,0.010076]
[1722652070139,2.14451323,61369.0,61368.0,0.010076]
[1722652071230,2.16451323,61369.0,61368.0,0.010076]
[1722652071485,2.40893623,61369.0,61368.0,0.010076]
[1722652072487,2.16451323,61369.0,61368.0,0.010076]
[1722652072686,1.58425958,61369.0,61368.0,0.010076]
[1722652072889,2.1632172,61369.0,61368.0,0.010076]
[1722652073092,0.376675,61362.0,61351.0,0.0771]
[1722652073254,1.26130038,61362.0,61351.0,0.0771]
[1722652073475,1.75809468,61362.0,61351.0,0.0771]
[1722652073674,1.97739918,61362.0,61351.0,0.0771]
[1722652074082,1.97746377,61362.0,61351.0,0.0771]
[1722652074282,1.90115958,61362.0,61351.0,0.0771]
[1722652074536,1.88315958,61362.0,61351.0,0.0771]
[1722652074711,2.14760958,61362.0,61351.0,0.0771]
[1722652074913,2.24434625,61362.0,61351.0,0.0771]
[1722652075119,2.24534625,61362.0,61351.0,0.0771]
[1722652075873,2.24434625,61362.0,61351.0,0.0771]
[1722652076420,2.2423695,61362.0,61351.0,0.0771]
[1722652076619,2.29515358,61362.0,61351.0,0.0771]
[1722652076877,2.30068293,61362.0,61361.0,0.01864453]
[1722652077279,2.30668293,61362.0,61361.0,0.01964453]
[1722652077482,2.29468293,61362.0,61361.0,0.01764453]
[1722652077682,2.24189885,61362.0,61361.0,0.01764453]
[1722652077890,2.26289885,61362.0,61361.0,0.01964453]
[1722652078088,2.2629018,61362.0,61361.0,0.01964453]
[1722652078297,1.130187,61353.0,61343.0,0.0611]
[1722652078503,0.366783,61344.0,61343.0,0.0611]
[1722652078722,1.4865769,61344.0,61343.0,0.0611]
[1722652078923,0.366795,61342.0,61341.0,0.1012503]
[1722652079129,0.7760229,61342.0,61341.0,0.1012503]
[1722652079328,1.7636313,61342.0,61341.0,0.0241503]
[1722652079480,1.87150372,61342.0,61341.0,0.0241503]
[1722652079892,1.38871666,61342.0,61341.0,0.0241503]
[1722652080128,1.87100861,61342.0,61341.0,0.0241503]
[1722652080301,2.40860861,61342.0,61341.0,0.0241503]
[1722652080494,0.611455,61329.0,61328.0,0.0611]
[1722652080700,1.51878819,61329.0,61328.0,0.0611]
[1722652080919,1.52654223,61329.0,61328.0,0.0611]
[1722652081819,1.52654223,61329.0,61328.0,0.0661]
[1722652081820,1.52754223,61329.0,61328.0,0.0661]
[1722652082210,1.52654223,61329.0,61328.0,0.0611]
[1722652082605,1.04425028,61329.0,61328.0,0.0611]
[1722652082737,1.52737443,61329.0,61328.0,0.0611]
[1722652083138,1.52837443,61329.0,61328.0,0.0621]
[1722652083344,1.52937443,61329.0,61328.0,0.0681]
[1722652083524,1.52837443,61329.0,61328.0,0.0671]
[1722652083730,1.77295643,61329.0,61328.0,0.006]
[1722652083950,2.0613116,61329.0,61328.0,0.007]
[1722652084150,1.90395643,61329.0,61328.0,0.007]
[1722652084355,2.15823425,61329.0,61328.0,0.007]
[1722652084761,2.15830917,61329.0,61328.0,0.007]
[1722652084956,2.15830917,61329.0,61328.0,0.007913]
[1722652085164,2.15830917,61329.0,61314.0,0.0005]
[1722652085165,0.02,61328.0,61314.0,0.0005]
[1722652085334,1.02369224,61315.0,61314.0,0.0005]
[1722652085532,1.51989131,61315.0,61314.0,0.0005]
[1722652085758,1.51989131,61315.0,61314.0,0.0616]
[1722652085759,1.6272353,61315.0,61314.0,0.0616]
[1722652085956,1.3865128,61315.0,61314.0,0.0616]
[1722652086156,1.36216521,61315.0,61314.0,0.0616]
[1722652086357,1.31347664,61315.0,61314.0,0.0616]
[1722652086555,1.36217884,61315.0,61314.0,0.0616]
[1722652086779,1.36217884,61315.0,61314.0,0.0005]
[1722652087034,1.36218198,61315.0,61314.0,0.0005]
[1722652087206,1.32749341,61315.0,61314.0,0.0005]
[1722652087422,1.34149341,61315.0,61314.0,0.0005]
[1722652087826,1.32749341,61315.0,61314.0,0.0005]
[1722652088256,1.31449341,61315.0,61314.0,0.0005]
[1722652088681,1.32452325,61315.0,61314.0,0.0005]
[1722652089022,1.33152325,61315.0,61314.0,0.0005]
[1722652089626,1.33052325,61315.0,61314.0,0.0005]
[1722652089978,1.34452325,61315.0,61314.0,0.0005]
[1722652090315,1.32352325,61315.0,61314.0,0.0005]
[1722652090516,1.5777031,61315.0,61314.0,0.0005]
[1722652090881,1.32451792,61315.0,61314.0,0.0005]
[1722652091260,1.32351792,61315.0,61314.0,0.0005]
[1722652091467,1.33051792,61315.0,61314.0,0.0015]
[1722652091667,1.33051792,61315.0,61314.0,0.0005]
[1722652091896,1.34451792,61315.0,61314.0,0.0005]
[1722652092304,1.32351792,61315.0,61314.0,0.0005]
[1722652092642,1.33151792,61315.0,61314.0,0.0005]
[1722652092984,1.07887992,61315.0,61314.0,0.0005]
[1722652093201,0.97887992,61315.0,61314.0,0.0807]
[1722652093442,0.98587992,61315.0,61314.0,0.0807]
[1722652093629,0.98587992,61315.0,61314.0,0.0817]
[1722652093980,0.98586663,61315.0,61314.0,0.0807]
[1722652094347,0.99186663,61315.0,61314.0,0.0807]
[1722652094532,0.98486663,61315.0,61314.0,0.0807]
[1722652094732,0.20578255,61315.0,61314.0,0.1453]
[1722652094933,0.18378255,61315.0,61314.0,0.1453]
[1722652095135,0.18078255,61315.0,61314.0,0.1453]
[1722652095598,0.17778255,61315.0,61314.0,0.1453]
[1722652095794,0.54673955,61315.0,61314.0,0.1453]
[1722652096000,0.30210155,61315.0,61314.0,0.1453]
[1722652096218,0.56973955,61315.0,61314.0,0.1453]
[1722652096420,0.56773955,61315.0,61314.0,0.1453]
[1722652096619,0.17778255,61315.0,61314.0,0.1453]
[1722652097316,0.77739823,61315.0,61314.0,0.1453]
[1722652097517,0.94580344,61315.0,61314.0,0.1453]
[1722652097746,1.02203623,61315.0,61314.0,0.1503]
[1722652097914,1.02203623,61315.0,61314.0,0.1453]
[1722652097915,1.44462466,61315.0,61314.0,0.1453]
[1722652098340,1.44462466,61315.0,61314.0,0.1503]
[1722652098341,1.44562466,61315.0,61314.0,0.1503]
[1722652098519,1.46862466,61315.0,61314.0,0.1453]
[1722652099027,1.46964076,61315.0,61314.0,0.0651]
[1722652099254,1.46964076,61315.0,61314.0,0.0005]
[1722652099570,1.46864076,61315.0,61314.0,0.0005]
[1722652099810,1.46964076,61315.0,61314.0,0.0005]
[1722652099935,1.57064076,61315.0,61314.0,0.0055]
[1722652100779,1.57066436,61315.0,61314.0,0.0055]
[1722652101265,1.58049148,61315.0,61314.0,0.0055]
[1722652102415,2.26151831,61315.0,61314.0,0.0055]
[1722652102643,2.26151831,61315.0,61307.0,0.010098]
[1722652102644,0.866331,61308.0,61307.0,0.010098]
[1722652102856,1.94836329,61308.0,61307.0,0.010098]
[1722652103102,2.07136329,61308.0,61307.0,0.010098]
[1722652103684,2.09136329,61308.0,61307.0,0.010098]
[1722652104282,2.27706329,61308.0,61307.0,0.010098]
[1722652104486,2.26306329,61308.0,61307.0,0.010098]
[1722652104865,2.27706329,61308.0,61307.0,0.010098]
[1722652105062,2.27706329,61308.0,61281.0,0.00157439]
[1722652105063,1.251541,61300.0,61282.0,0.0646]
[1722652105283,1.251541,61300.0,61280.0,0.00157439]
[1722652105284,0.367161,61281.0,61280.0,0.00157439]
[1722652105489,0.856723,61280.0,61276.0,0.0802]
[1722652105686,1.76418024,61280.0,61274.0,0.0646]
[1722652105893,1.51940224,61280.0,61274.0,0.0646]
[1722652106297,1.56081037,61280.0,61274.0,0.0646]
[1722652106506,1.62131826,61280.0,61274.0,0.0646]
[1722652106977,1.62931826,61280.0,61274.0,0.0646]
[1722652107152,1.07925437,61280.0,61274.0,0.0646]
[1722652107355,0.60408737,61280.0,61279.0,0.1588633]
[1722652107674,0.18752837,61280.0,61279.0,0.1588633]
[1722652108083,0.17851577,61280.0,61279.0,0.16212709]
[1722652108288,0.18651577,61280.0,61279.0,0.1588633]
[1722652109490,0.16951577,61280.0,61279.0,0.1588633]
[1722652109694,0.122371,61289.0,61282.0,0.0611]
[1722652110046,0.16949839,61288.0,61285.0,0.0764]
[1722652110255,0.16949839,61287.0,61286.0,0.00157439]
[1722652110541,0.16949839,61287.0,61286.0,0.13907439]
[1722652110752,0.244712,61297.0,61281.0,0.01]
[1722652110950,0.244692,61302.0,61290.0,0.0611]
[1722652110951,0.72654004,61296.0,61290.0,0.0611]
[1722652111158,0.72654004,61296.0,61292.0,0.1375]
[1722652111159,0.44672136,61296.0,61292.0,0.1375]
[1722652111363,0.16948854,61295.0,61294.0,0.0611]
[1722652111571,0.19248854,61295.0,61294.0,0.0611]
[1722652111770,0.16948854,61295.0,61294.0,0.0611]
[1722652112095,0.16948854,61295.0,61294.0,0.1375]
[1722652113863,0.16948854,61295.0,61294.0,0.1385]
[1722652114063,0.17048854,61295.0,61294.0,0.1385]
[1722652116164,0.42470629,61295.0,61294.0,0.1385]
[1722652117140,0.42470629,61295.0,61294.0,0.139413]
[1722652117957,0.001,61295.0,61294.0,0.139413]
[1722652118173,0.17046696,61295.0,61294.0,0.139413]
[1722652118359,0.17046696,61295.0,61294.0,0.149413]
[1722652118494,0.17044428,61295.0,61294.0,0.149413]
[1722652118950,0.17044428,61295.0,61294.0,0.150413]
[1722652119324,0.17144428,61295.0,61294.0,0.151413]
[1722652119698,0.002,61295.0,61294.0,0.30887224]
[1722652119848,0.001,61295.0,61294.0,0.3111345]
[1722652120251,0.00083,61299.0,61294.0,0.3111345]
[1722652120252,0.00083,61299.0,61298.0,0.1475]
[1722652120450,0.00083,61299.0,61298.0,0.34126221]
[1722652120451,0.17026875,61299.0,61298.0,0.34126221]
[1722652120629,0.17026875,61299.0,61298.0,0.338]
[1722652121489,0.00083,61299.0,61298.0,0.338]
[1722652121728,0.00083,61299.0,61298.0,0.328]
[1722652122241,0.00083,61299.0,61298.0,0.338]
[1722652123054,0.17025682,61299.0,61298.0,0.338]
[1722652123263,0.17125682,61299.0,61298.0,0.342]
[1722652123464,0.34068176,61299.0,61298.0,0.50145924]
[1722652123897,0.17225682,61299.0,61298.0,0.50945924]
[1722652124223,0.17225682,61299.0,61298.0,0.60945924]
[1722652124867,0.10565682,61299.0,61298.0,0.62945924]
[1722652125083,0.002,61299.0,61298.0,0.62945924]
[1722652125291,0.47251164,61327.0,61318.0,0.0764]
[1722652125684,0.16938857,61326.0,61318.0,0.0764]
[1722652126003,0.29168857,61325.0,61318.0,0.0764]
[1722652126182,0.16938857,61324.0,61318.0,0.0764]
[1722652126383,0.16938857,61323.0,61318.0,0.0764]
[1722652126567,0.244592,61327.0,61318.0,0.0764]
[1722652126568,0.16938857,61322.0,61318.0,0.0764]
[1722652126764,0.29169557,61321.0,61318.0,0.0764]
[1722652126965,0.16938857,61320.0,61318.0,0.0764]
[1722652127248,0.37045151,61319.0,61318.0,0.0764]
[1722652127373,0.55091075,61319.0,61318.0,0.003]
[1722652127590,1.04015475,61319.0,61318.0,0.003]
[1722652127797,0.42859975,61319.0,61310.0,0.0764]
[1722652128015,0.244634,61316.0,61310.0,0.0764]
[1722652128215,0.19238857,61315.0,61310.0,0.0764]
[1722652128416,0.16938857,61314.0,61310.0,0.0764]
[1722652128841,0.16938857,61313.0,61312.0,0.1375]
[1722652129043,0.122304,61323.0,61312.0,0.1375]
[1722652129242,0.16941666,61322.0,61312.0,0.1375]
[1722652129440,0.244602,61324.0,61312.0,0.1375]
[1722652129441,0.16941666,61321.0,61312.0,0.1375]
[1722652129643,0.16941666,61320.0,61312.0,0.1375]
[1722652129960,0.16941666,61319.0,61318.0,0.005]
[1722652130162,0.16941666,61319.0,61312.0,0.1375]
[1722652130466,0.16941666,61318.0,61312.0,0.1395]
[1722652130639,0.16941666,61317.0,61312.0,0.1395]
[1722652130838,0.16941666,61316.0,61312.0,0.1395]
[1722652131043,0.16941666,61315.0,61312.0,0.1395]
[1722652131242,0.00748138,61314.0,61312.0,0.1395]
[1722652131447,0.16941666,61313.0,61312.0,0.1375]
[1722652131894,0.16941666,61322.0,61313.0,0.0783]
[1722652132010,0.1694073,61321.0,61315.0,0.0783]
[1722652132216,0.1694073,61320.0,61317.0,0.0783]
[1722652132411,0.27975224,61328.0,61317.0,0.0783]
[1722652132616,0.19239827,61327.0,61317.0,0.0783]
[1722652132810,0.001,61320.0,61317.0,0.0783]
[1722652133016,0.16939827,61319.0,61317.0,0.0783]
[1722652133437,0.16939827,61318.0,61317.0,0.0783]
[1722652133616,0.16939827,61318.0,61317.0,0.0873]
[1722652133862,0.29170927,61319.0,61317.0,0.0873]
[1722652134033,0.16939827,61318.0,61317.0,0.0783]
[1722652134560,0.001,61319.0,61317.0,0.01]
[1722652134756,0.16939827,61318.0,61317.0,0.01]
[1722652135534,0.16939827,61318.0,61317.0,0.019]
[1722652135778,0.16939827,61318.0,61317.0,0.1489]
[1722652136093,0.001,61319.0,61317.0,0.1489]
[1722652136271,0.1704006,61318.0,61317.0,0.011]
[1722652136471,0.1704006,61318.0,61317.0,0.1509]
[1722652136672,0.1714006,61318.0,61317.0,0.1609]
[1722652137057,0.001,61318.0,61317.0,0.1599]
[1722652137266,0.001,61318.0,61317.0,0.16316132]
[1722652137491,0.001,61318.0,61317.0,0.17316132]
[1722652137695,0.001,61318.0,61317.0,0.16316132]
[1722652138292,0.001,61318.0,61317.0,0.15316132]
[1722652138939,0.001,61318.0,61317.0,0.32062056]
[1722652139258,0.78323864,61343.0,61325.0,0.0616]
[1722652139460,0.15745924,61342.0,61330.0,0.1905]
[1722652139582,0.17700775,61342.0,61331.0,0.1399]
[1722652139785,0.16935767,61341.0,61331.0,0.1399]
[1722652140291,0.04869193,61350.0,61331.0,0.1399]
[1722652140292,0.17700775,61340.0,61332.0,0.0783]
[1722652140490,0.16935767,61339.0,61332.0,0.0783]
[1722652140916,0.17700775,61338.0,61332.0,0.0783]
[1722652141181,0.16935767,61337.0,61332.0,0.0783]
[1722652141796,0.17700775,61336.0,61332.0,0.0783]
[1722652141945,0.16935767,61335.0,61332.0,0.0783]
[1722652142368,0.2992822,61334.0,61332.0,0.0783]
[1722652142527,0.16935012,61333.0,61332.0,0.0783]
[1722652142934,0.00765008,61333.0,61332.0,0.0783]
[1722652143173,0.16935012,61338.0,61332.0,0.0863]
[1722652143380,0.00765008,61333.0,61332.0,0.1003]
[1722652143576,0.122271,61339.0,61332.0,0.0863]
[1722652143577,0.16935012,61336.0,61332.0,0.0863]
[1722652143902,0.16935012,61335.0,61332.0,0.0783]
[1722652144121,0.16935012,61334.0,61332.0,0.0953]
[1722652144327,0.16935012,61333.0,61332.0,0.0953]
[1722652144501,0.16935012,61333.0,61332.0,0.0873]
[1722652145044,0.00765008,61333.0,61332.0,0.0873]
[1722652145293,0.1770002,61333.0,61332.0,0.0873]
[1722652145503,0.16935141,61333.0,61332.0,0.0783]
[1722652145639,0.00765008,61333.0,61332.0,0.0783]
[1722652145836,0.17700149,61333.0,61332.0,0.0813]
[1722652146062,0.17700149,61333.0,61332.0,0.0793]
[1722652146266,0.17698795,61333.0,61332.0,0.0793]
[1722652146473,0.00765008,61333.0,61332.0,0.0983]
[1722652146681,0.00765008,61333.0,61332.0,0.0893]
[1722652146880,0.122255,61347.0,61334.0,0.0783]
[1722652147084,0.19233639,61346.0,61334.0,0.08156047]
[1722652147279,0.16933639,61345.0,61334.0,0.08156047]
[1722652147952,0.17698647,61344.0,61334.0,0.0783]
[1722652148129,0.16933639,61343.0,61334.0,0.0783]
[1722652148340,0.16933639,61342.0,61334.0,0.0783]
[1722652148463,0.16933639,61341.0,61334.0,0.0783]
[1722652148666,0.16933639,61341.0,61334.0,0.0813]
[1722652148867,0.122258,61346.0,61334.0,0.0813]
[1722652149093,0.00778233,61340.0,61334.0,0.0783]
[1722652149297,0.16934313,61339.0,61337.0,0.0783]
[1722652149498,0.42335385,61346.0,61337.0,0.0783]
[1722652149726,0.00778233,61338.0,61337.0,0.0783]
[1722652149911,0.16934313,61338.0,61337.0,0.0783]
[1722652150126,0.00778233,61338.0,61337.0,0.0783]
[1722652150435,0.17712546,61338.0,61337.0,0.0783]
[1722652150632,0.16934313,61338.0,61337.0,0.0783]
[1722652150786,0.00778233,61338.0,61337.0,0.0783]
[1722652150998,0.16934313,61338.0,61334.0,0.003]
[1722652151206,0.16934313,61337.0,61334.0,0.003]
[1722652151429,0.16934313,61336.0,61334.0,0.003]
[1722652151583,0.0605,61341.0,61334.0,0.003]
[1722652151584,0.16934313,61335.0,61334.0,0.003]
[1722652151784,0.17712546,61335.0,61334.0,0.003]
[1722652151963,0.17712546,61335.0,61333.0,0.1423]
[1722652152214,0.16934313,61334.0,61333.0,0.1423]
[1722652152719,0.00778233,61334.0,61333.0,0.1423]
[1722652152954,0.16934313,61334.0,61333.0,0.1423]
[1722652153154,0.00778233,61334.0,61333.0,0.1423]
[1722652153358,0.122266,61342.0,61333.0,0.1423]
[1722652153650,0.16934896,61341.0,61333.0,0.1563]
[1722652153791,0.122266,61342.0,61333.0,0.1703]
[1722652153792,0.16934896,61340.0,61333.0,0.1703]
[1722652153999,0.16934896,61339.0,61333.0,0.1703]
[1722652154209,0.16934896,61338.0,61333.0,0.1703]
[1722652154397,0.122268,61341.0,61333.0,0.1703]
[1722652154398,0.16934896,61337.0,61333.0,0.1703]
[1722652154577,0.16934896,61336.0,61333.0,0.1703]
[1722652155002,0.17713129,61335.0,61333.0,0.1703]
[1722652155201,0.16934896,61334.0,61333.0,0.1703]
[1722652155402,0.16934896,61334.0,61333.0,0.1563]
[1722652155611,0.16934896,61334.0,61333.0,0.1423]
[1722652155612,0.00778233,61334.0,61333.0,0.1423]
[1722652155817,0.00778233,61334.0,61333.0,0.007]
[1722652155818,0.16934896,61334.0,61333.0,0.007]
[1722652156020,0.00778233,61334.0,61333.0,0.015]
[1722652156341,0.00778233,61334.0,61329.0,0.1423]
[1722652156342,0.17713129,61334.0,61329.0,0.1423]
[1722652156492,0.16934896,61333.0,61329.0,0.1423]
[1722652156695,0.00778233,61334.0,61329.0,0.1423]
[1722652156696,0.16936248,61332.0,61329.0,0.1423]
[1722652156923,0.17714481,61331.0,61329.0,0.1423]
[1722652157080,0.16936248,61330.0,61329.0,0.1423]
[1722652157522,0.13007133,61330.0,61329.0,0.0823]
[1722652157763,0.122291,61329.0,61325.0,0.0823]
[1722652157974,0.16936248,61328.0,61325.0,0.0823]
[1722652158271,0.29165848,61327.0,61321.0,0.0823]
[1722652158468,0.16936248,61326.0,61321.0,0.0823]
[1722652158686,0.16937844,61325.0,61321.0,0.0823]
[1722652158917,0.16937844,61324.0,61321.0,0.0823]
[1722652159502,0.16937844,61323.0,61321.0,0.0943]
[1722652159741,0.16937844,61322.0,61321.0,0.1083]
[1722652159940,0.16937844,61322.0,61321.0,0.0943]
[1722652160150,0.16937844,61322.0,61321.0,0.0823]
[1722652160314,0.17714392,61322.0,61321.0,0.0823]
[1722652160523,0.17714392,61322.0,61321.0,0.1103]
[1722652160720,0.17714392,61322.0,61321.0,0.0963]
[1722652162053,0.17714392,61322.0,61321.0,0.014]
[1722652162685,0.17714392,61322.0,61321.0,0.028]
[1722652163787,0.00776161,61322.0,61321.0,0.028]
[1722652163988,0.17715186,61322.0,61321.0,0.028]
[1722652164357,0.17715247,61322.0,61321.0,0.028]
[1722652167426,0.17715042,61322.0,61321.0,0.028]
[1722652168961,0.17715042,61322.0,61321.0,0.1703]
[1722652169452,0.16938881,61322.0,61321.0,0.1703]
[1722652169752,0.16938881,61322.0,61321.0,0.1563]
[1722652170057,0.17708547,61322.0,61321.0,0.1563]
[1722652170284,0.17708547,61322.0,61321.0,0.1703]
[1722652171603,0.17708547,61322.0,61321.0,0.1563]
[1722652171958,0.17708547,61322.0,61321.0,0.1103]
[1722652172582,0.16938881,61322.0,61321.0,0.1103]
[1722652173333,0.17710854,61322.0,61321.0,0.1103]
[1722652173487,0.17710854,61322.0,61321.0,0.1741]
[1722652174458,0.34648031,61322.0,61321.0,0.1741]
[1722652175310,0.17709998,61322.0,61321.0,0.028]
[1722652178009,0.17710633,61322.0,61321.0,0.028]
[1722652180373,0.17710633,61322.0,61321.0,0.1689]
[1722652184875,0.17710733,61322.0,61321.0,0.1689]
[1722652185330,0.1771058,61322.0,61321.0,0.1689]
[1722652185798,0.1771058,61322.0,61321.0,0.1051]
[1722652187232,0.1771058,61322.0,61321.0,0.1689]
[1722652187618,0.1771058,61322.0,61321.0,0.32635924]
[1722652187852,0.16938607,61322.0,61321.0,0.32635924]
[1722652188053,0.17708688,61322.0,61321.0,0.43635924]
[1722652188296,0.17708688,61322.0,61321.0,0.56184948]
[1722652188487,0.17708688,61322.0,61321.0,0.42635924]
[1722652188707,0.1770586,61322.0,61321.0,0.56184547]
[1722652188895,0.1770586,61322.0,61321.0,0.54784547]
[1722652189321,0.1770586,61322.0,61321.0,0.54884547]
[1722652189528,0.1770586,61322.0,61321.0,0.41335924]
[1722652189702,0.1770586,61322.0,61321.0,0.39935924]
[1722652189904,0.1770586,61322.0,61321.0,0.53484269]
[1722652190097,0.1770586,61322.0,61321.0,0.54584269]
[1722652190343,0.1770586,61322.0,61321.0,0.41035924]
[1722652190529,0.00770081,61322.0,61321.0,0.64359212]
[1722652190967,0.04882306,61338.0,61329.0,0.0608]
[1722652191280,0.17704338,61337.0,61336.0,0.1905]
[1722652192029,0.17704396,61337.0,61336.0,0.2738]
[1722652192229,0.17704396,61337.0,61336.0,0.3346]
[1722652192652,0.17704396,61337.0,61336.0,0.3476]
[1722652193647,0.17704396,61337.0,61336.0,0.50505924]
[1722652194043,0.16934315,61337.0,61336.0,0.50505924]
[1722652194370,0.16934315,61337.0,61336.0,0.51905924]
[1722652194371,0.17714935,61337.0,61336.0,0.51905924]
[1722652194481,0.17714935,61337.0,61336.0,0.50505924]
[1722652194884,0.17714935,61337.0,61336.0,0.50605924]
[1722652195362,0.17714935,61337.0,61336.0,0.52005924]
[1722652195542,0.16932053,61337.0,61336.0,0.52005924]
[1722652195741,0.16931998,61346.0,61336.0,0.52005924]
[1722652195954,0.16932204,61345.0,61337.0,0.15745924]
[1722652196112,0.16932204,61344.0,61337.0,0.15745924]
[1722652196455,0.16932204,61343.0,61337.0,0.15745924]
[1722652196651,0.16932204,61342.0,61336.0,0.1581]
[1722652196975,0.16932204,61341.0,61336.0,0.014]
[1722652197277,0.16932204,61340.0,61332.0,0.1]
[1722652197491,0.16932204,61339.0,61337.0,0.014]
[1722652197623,0.16932204,61338.0,61337.0,0.014]
[1722652198371,0.16932204,61338.0,61337.0,0.012]
[1722652198749,0.16932204,61342.0,61337.0,0.012]
[1722652198950,0.16932204,61342.0,61332.0,0.1]
[1722652199302,0.16933175,61341.0,61337.0,0.014]
[1722652199491,0.16933175,61340.0,61337.0,0.014]
[1722652199718,0.16933175,61339.0,61332.0,0.1]
[1722652199874,0.16933175,61338.0,61336.0,0.014]
[1722652200050,0.04882102,61343.0,61336.0,0.014]
[1722652200051,0.16933175,61337.0,61336.0,0.014]
[1722652200396,0.16933175,61342.0,61332.0,0.1]
[1722652200556,0.16933175,61341.0,61332.0,0.1]
[1722652200760,0.16933175,61340.0,61337.0,0.0608]
[1722652200972,0.16933175,61339.0,61337.0,0.0608]
[1722652201173,0.16933175,61338.0,61337.0,0.0608]
[1722652201422,0.04882102,61343.0,61337.0,0.0748]
[1722652201720,0.16933292,61342.0,61338.0,0.0833]
[1722652203507,0.16933292,61341.0,61338.0,0.0833]
[1722652203743,0.16933292,61340.0,61338.0,0.0973]
[1722652203968,0.16933292,61339.0,61338.0,0.0833]
[1722652204169,0.16933292,61344.0,61338.0,0.0833]
[1722652204374,0.16933292,61344.0,61338.0,0.0953]
[1722652204722,0.16933292,61344.0,61337.0,0.0748]
[1722652204723,0.16933292,61344.0,61337.0,0.014]
[1722652204920,0.21815394,61344.0,61337.0,0.014]
[1722652205147,0.16933292,61343.0,61334.0,0.1441]
[1722652205380,0.1693371,61342.0,61334.0,0.30155924]
[1722652205556,0.19549053,61345.0,61338.0,0.014]
[1722652205557,0.1693371,61341.0,61338.0,0.014]
[1722652205759,0.1693371,61340.0,61338.0,0.014]
[1722652205966,0.1693371,61339.0,61338.0,0.014]
[1722652206369,0.04878744,61346.0,61338.0,0.014]
[1722652206620,0.16933269,61345.0,61338.0,0.014]
[1722652206824,0.17104044,61348.0,61338.0,0.014]
[1722652206825,0.16933269,61344.0,61338.0,0.014]
[1722652207030,0.16933269,61343.0,61336.0,0.1905]
[1722652207215,0.16933269,61342.0,61336.0,0.1905]
[1722652207400,0.17104044,61348.0,61336.0,0.1905]